[Event "Cracovia Festival-A 2023"]
[Site "Krakow"]
[Date "2024.01.04"]
[Round "9.21"]
[White "Grochol, Kamil"]
[Black "Cieslak, Patryk"]
[Result "1/2-1/2"]
[ECO "B13"]
[WhiteElo "2101"]
[BlackElo "2284"]
[Annotator "RC"]
[PlyCount "112"]
[EventDate "2023.12.24"]
[EventType "swiss"]
[EventCountry "POL"]
[SourceTitle "playchess.com"]
[Source "ChessBase"]
[SourceQuality "1"]
[TimeControl "40/5400+30:1800+30"]

1. e4 {[%emt 0:00:06]} c6 {[%emt 0:00:01]} 2. d4 {[%emt 0:00:38]} d5 {[%emt 0:00:03]} 3. exd5 {[%emt 0:00:37]} cxd5 {[%emt 0:00:04]} 4. Bd3 {[%emt 0:00:11]} Nc6 {[%emt 0:00:02]} 5. c3 {[%emt 0:00:16]} Qc7 {[%emt 0:00:03]} 6. Ne2 {[%emt 0:00:56]} Bg4 {[%emt 0:00:13]} 7. O-O {[%emt 0:00:20]} e6 {[%emt 0:00:20]} 8. Qe1 {[%emt 0:00:29]} Nf6 {[%emt 0:00:28]} 9. f3 {[%emt 0:01:26]} Bh5 {[%emt 0:00:16]} 10. Qh4 {[%emt 0:00:51]} Bg6 {[%emt 0:00:18]} 11. Bxg6 {[%emt 0:01:20]} fxg6 {[%emt 0:00:07]} 12. Nf4 {[%emt 0:04:11]} Kf7 {[%emt 0:00:16]} 13. Nd3 {[%emt 0:06:31]} e5 {[%emt 0:10:28]} 14. Nxe5+ {[%emt 0:03:53]} Nxe5 {[%emt 0:00:31]} 15. dxe5 {[%emt 0:00:39]} Bc5+ {[%emt 0:00:31]} 16. Kh1 {[%emt 0:00:51]} Qxe5 {[%emt 0:00:07]} 17. Bg5 {[%emt 0:07:24]} h6 {[%emt 0:31:51]} 18. Bxf6 {[%emt 0:02:27]} gxf6 {[%emt 0:06:14]} 19. Nd2 {[%emt 0:01:01]} Qg5 {[%emt 0:02:45]} 20. Qxg5 {[%emt 0:10:36]} hxg5 {[%emt 0:00:10]} 21. Nb3 {[%emt 0:01:25]} Bb6 {[%emt 0:08:03]} 22. Rad1 {[%emt 0:02:40]} Rad8 {[%emt 0:00:07]} 23. g3 {[%emt 0:02:11]} f5 {[%emt 0:03:15]} 24. Kg2 {[%emt 0:02:29]} f4 {[%emt 0:04:19]} 25. Rfe1 {[%emt 0:03:39]} Rhe8 {[%emt 0:02:02]} 26. Rxe8 {[%emt 0:02:06]} Rxe8 {[%emt 0:00:24]} 27. Rxd5 {[%emt 0:02:29]} Re2+ {[%emt 0:00:17]} 28. Kh3 {[%emt 0:01:07]} Rxb2 {[%emt 0:00:27]} 29. Rd2 {[%emt 0:08:49]} Rb1 {[%emt 0:01:24]} 30. Rd7+ {[%emt 0:05:57]} Kf6 {[%emt 0:01:25]} 31. Rxb7 {[%emt 0:01:34]} Rh1 {[%emt 0:01:03]} 32. Nd2 {[%emt 0:05:55]} fxg3 {[%emt 0:01:17]} 33. Ne4+ {[%emt 0:01:12]} Ke6 {[%emt 0:03:14]} 34. Kxg3 {[%emt 0:01:20]} Be3 {[%emt 0:01:27]} 35. Rb2 {[%emt 0:00:40]} Kd5 {[%emt 0:04:07]} 36. Rg2 {[%emt 0:06:47]} Kc4 {[%emt 0:02:36]} 37. Kg4 {[%emt 0:01:02]} a5 {[%emt 0:02:07]} 38. Nxg5 {[%emt 0:03:01]} a4 {[%emt 0:00:30]} 39. Ne4 {[%emt 0:06:03]} a3 {[%emt 0:00:57]} 40. Kh3 {[%emt 0:00:00]} Ra1 {[%emt 0:00:00]} 41. Nd6+ {[%emt 0:10:53]} Kc5 {[%emt 0:07:53]} 42. Ne4+ {[%emt 0:02:51]} Kc4 {[%emt 0:03:50]} 43. Nd6+ {[%emt 0:00:19]} Kd3 {[%emt 0:05:04]} 44. Nb5 {[%emt 0:02:31]} Bc5 {[%emt 0:00:20]} 45. Rxg6 {[%emt 0:07:11]} Rxa2 {[%emt 0:04:24]} 46. Ra6 {[%emt 0:03:11]} Kc4 {[%emt 0:00:55]} 47. Nxa3+ {[%emt 0:01:24]} Bxa3 {[%emt 0:00:04]} 48. Kg4 {[%emt 0:01:06]} Rg2+ {[%emt 0:01:06]} 49. Kf5 {[%emt 0:02:53]} Bc5 {[%emt 0:02:50]} 50. h4 {[%emt 0:00:36]} Rh2 {[%emt 0:00:49]} 51. Ra4+ {[%emt 0:04:49]} Kd5 {[%emt 0:01:34]} 52. Re4 {[%emt 0:00:12]} Kd6 {[%emt 0:02:03]} 53. c4 {[%emt 0:02:11]} Kd7 {[%emt 0:00:32]} 54. Kg6 {[%emt 0:01:10]} Rg2+ {[%emt 0:00:32]} 55. Rg4 {[%emt 0:00:17]} Rf2 {[%emt 0:02:24]} 56. f4 {[%emt 0:00:02]} Ke6 {[%emt 0:05:17]} 1/2-1/2

[Event "Cracovia Festival-A 2023"]
[Site "Krakow"]
[Date "2024.01.04"]
[Round "9.22"]
[White "Baum, Jonasz"]
[Black "Ramirez Garcia, Jorge Alberto"]
[Result "1/2-1/2"]
[ECO "B13"]
[WhiteElo "2421"]
[BlackElo "2249"]
[Annotator "RC"]
[PlyCount "99"]
[EventDate "2023.12.24"]
[EventType "swiss"]
[EventCountry "POL"]
[SourceTitle "playchess.com"]
[Source "ChessBase"]
[SourceQuality "1"]
[TimeControl "40/5400+30:1800+30"]

1. e4 {[%emt 0:07:08]} c6 {[%emt 0:04:42]} 2. d4 {[%emt 0:00:05]} d5 {[%emt 0:00:05]} 3. exd5 {[%emt 0:00:18]} cxd5 {[%emt 0:00:11]} 4. Bd3 {[%emt 0:00:06]} Nc6 {[%emt 0:00:08]} 5. c3 {[%emt 0:00:04]} Qc7 {[%emt 0:02:32]} 6. h3 {[%emt 0:00:08]} Nf6 {[%emt 0:04:03]} 7. Nf3 {[%emt 0:00:09]} g6 {[%emt 0:01:35]} 8. Qc2 {[%emt 0:00:12]} Bg7 {[%emt 0:04:09]} 9. O-O {[%emt 0:00:06]} O-O {[%emt 0:00:20]} 10. Re1 {[%emt 0:00:05]} Nh5 {[%emt 0:06:22]} 11. Be3 {[%emt 0:08:32]} Nf4 {[%emt 0:08:01]} 12. Bf1 {[%emt 0:00:32]} Rb8 {[%emt 0:03:41]} 13. Qc1 {[%emt 0:02:02]} Ne6 {[%emt 0:01:27]} 14. Na3 {[%emt 0:09:08]} a6 {[%emt 0:03:55]} 15. Nc2 {[%emt 0:01:39]} Rd8 {[%emt 0:11:32]} 16. h4 {[%emt 0:04:55]} Qd6 {[%emt 0:03:48]} 17. Bd3 {[%emt 0:02:44]} b5 {[%emt 0:01:04]} 18. b4 {[%emt 0:00:15]} Re8 {[%emt 0:05:25]} 19. h5 {[%emt 0:09:23]} Nc7 {[%emt 0:01:21]} 20. h6 {[%emt 0:05:16]} Bf6 {[%emt 0:00:54]} 21. Bf4 {[%emt 0:00:37]} Qd8 {[%emt 0:03:56]} 22. Ne3 {[%emt 0:03:21]} e5 {[%emt 0:03:13]} 23. dxe5 {[%emt 0:00:47]} Nxe5 {[%emt 0:00:24]} 24. Nxe5 {[%emt 0:00:07]} Bxe5 {[%emt 0:00:09]} 25. Bxe5 {[%emt 0:20:10]} Rxe5 {[%emt 0:00:14]} 26. Nc2 {[%emt 0:01:15]} Qd6 {[%emt 0:01:34]} 27. Rxe5 {[%emt 0:03:18]} Qxe5 {[%emt 0:00:03]} 28. Qd2 {[%emt 0:01:29]} Bd7 {[%emt 0:01:24]} 29. Re1 {[%emt 0:00:33]} Qf6 {[%emt 0:01:52]} 30. Nd4 {[%emt 0:00:58]} Rc8 {[%emt 0:02:39]} 31. Bc2 {[%emt 0:00:47]} Be6 {[%emt 0:07:31]} 32. Bb3 {[%emt 0:02:28]} g5 {[%emt 0:04:59]} 33. Re3 {[%emt 0:06:25]} Qxh6 {[%emt 0:04:45]} 34. Rg3 {[%emt 0:01:03]} Kf8 {[%emt 0:00:31]} 35. Rxg5 {[%emt 0:00:42]} Qh4 {[%emt 0:01:24]} 36. Qe3 {[%emt 0:03:19]} Qe4 {[%emt 0:00:58]} 37. Qg3 {[%emt 0:01:15]} Ke7 {[%emt 0:01:59]} 38. Kh2 {[%emt 0:02:43]} Ne8 {[%emt 0:01:51]} 39. Bxd5 {[%emt 0:02:05]} Qe1 {[%emt 0:01:23]} 40. Bxe6 {[%emt 0:00:00]} fxe6 {[%emt 0:00:00]} 41. Re5 {[%emt 0:13:42]} Qxc3 {[%emt 0:01:36]} 42. Rxe6+ {[%emt 0:06:28]} Kd7 {[%emt 0:00:34]} 43. Qxc3 {[%emt 0:05:05]} Rxc3 {[%emt 0:00:06]} 44. Rxa6 {[%emt 0:00:04]} Nc7 {[%emt 0:01:07]} 45. Ra7 {[%emt 0:02:40]} Kc8 {[%emt 0:00:50]} 46. Ra5 {[%emt 0:00:05]} Rd3 {[%emt 0:02:54]} 47. Nxb5 {[%emt 0:00:05]} Nd5 {[%emt 0:00:05]} 48. a3 {[%emt 0:01:25]} Kb8 {[%emt 0:00:11]} 49. Nd6 {[%emt 0:00:47]} Nf6 {[%emt 0:00:11]} 50. f3 {[%emt 0:03:46]} 1/2-1/2

[Event "Cracovia Festival-A 2023"]
[Site "Krakow"]
[Date "2024.01.04"]
[Round "9.23"]
[White "Karolczuk, Iwo"]
[Black "Vasynda, Oleksandr"]
[Result "1-0"]
[ECO "B31"]
[WhiteElo "2365"]
[BlackElo "2153"]
[Annotator "RC"]
[PlyCount "69"]
[EventDate "2023.12.24"]
[EventType "swiss"]
[EventCountry "POL"]
[SourceTitle "playchess.com"]
[Source "ChessBase"]
[SourceQuality "1"]
[TimeControl "40/5400+30:1800+30"]

1. e4 {[%emt 0:00:55]} c5 {[%emt 0:00:02]} 2. Nf3 {[%emt 0:00:45]} Nc6 {[%emt 0:00:04]} 3. Bb5 {[%emt 0:00:15]} g6 {[%emt 0:00:09]} 4. Bxc6 {[%emt 0:00:09]} dxc6 {[%emt 0:00:19]} 5. d3 {[%emt 0:00:09]} Bg7 {[%emt 0:00:02]} 6. h3 {[%emt 0:00:24]} Nf6 {[%emt 0:00:09]} 7. Nc3 {[%emt 0:00:11]} Nd7 {[%emt 0:00:15]} 8. Be3 {[%emt 0:00:14]} e5 {[%emt 0:00:35]} 9. Qd2 {[%emt 0:00:43]} Qe7 {[%emt 0:02:34]} 10. O-O {[%emt 0:01:17]} Nf8 {[%emt 0:00:28]} 11. Bh6 {[%emt 0:07:22]} Bxh6 {[%emt 0:04:40]} 12. Qxh6 {[%emt 0:00:13]} f6 {[%emt 0:01:07]} 13. Nh4 {[%emt 0:05:45]} g5 {[%emt 0:07:41]} 14. Nf5 {[%emt 0:00:20]} Bxf5 {[%emt 0:00:15]} 15. exf5 {[%emt 0:00:10]} Nd7 {[%emt 0:01:21]} 16. Ne4 {[%emt 0:05:17]} O-O-O {[%emt 0:02:47]} 17. a3 {[%emt 0:04:51]} Qf8 {[%emt 0:04:19]} 18. Qh5 {[%emt 0:06:22]} Kb8 {[%emt 0:00:41]} 19. b4 {[%emt 0:02:33]} b6 {[%emt 0:06:44]} 20. Rfb1 {[%emt 0:00:47]} Kc7 {[%emt 0:01:56]} 21. b5 {[%emt 0:08:11]} cxb5 {[%emt 0:04:00]} 22. Rxb5 {[%emt 0:00:15]} Qe8 {[%emt 0:01:18]} 23. Qf3 {[%emt 0:01:18]} Nb8 {[%emt 0:05:05]} 24. Rab1 {[%emt 0:06:00]} Nc6 {[%emt 0:06:29]} 25. Nxf6 {[%emt 0:10:50]} Qf7 {[%emt 0:00:17]} 26. Ng4 {[%emt 0:01:30]} Nd4 {[%emt 0:03:21]} 27. Rxc5+ {[%emt 0:00:30]} Kd6 {[%emt 0:00:13]} 28. Rc6+ {[%emt 0:01:10]} Nxc6 {[%emt 0:00:33]} 29. Qxc6+ {[%emt 0:00:08]} Kxc6 {[%emt 0:01:36]} 30. Nxe5+ {[%emt 0:00:07]} Kd5 {[%emt 0:00:02]} 31. Nxf7 {[%emt 0:00:39]} Kd4 {[%emt 0:00:23]} 32. Rb4+ {[%emt 0:00:56]} Kc3 {[%emt 0:00:22]} 33. Rc4+ {[%emt 0:00:49]} Kb2 {[%emt 0:00:03]} 34. Nxh8 {[%emt 0:00:10]} Rxh8 {[%emt 0:00:05]} 35. a4 {[%emt 0:00:28]} 1-0

[Event "Cracovia Festival-A 2023"]
[Site "Krakow"]
[Date "2024.01.04"]
[Round "9.24"]
[White "Gierulski, Kamil"]
[Black "Dubnevych, Maksym"]
[Result "1-0"]
[ECO "B31"]
[WhiteElo "2223"]
[BlackElo "2340"]
[Annotator "RC"]
[PlyCount "77"]
[EventDate "2023.12.24"]
[EventType "swiss"]
[EventCountry "POL"]
[SourceTitle "playchess.com"]
[Source "ChessBase"]
[SourceQuality "1"]
[TimeControl "40/5400+30:1800+30"]

1. e4 {[%emt 0:00:03]} c5 {[%emt 0:09:18]} 2. Nf3 {[%emt 0:02:08]} Nc6 {[%emt 0:00:04]} 3. Bb5 {[%emt 0:00:05]} g6 {[%emt 0:00:05]} 4. O-O {[%emt 0:00:12]} Bg7 {[%emt 0:00:05]} 5. c3 {[%emt 0:00:20]} Nf6 {[%emt 0:00:05]} 6. Re1 {[%emt 0:01:54]} O-O {[%emt 0:00:32]} 7. d4 {[%emt 0:00:07]} d5 {[%emt 0:00:03]} 8. e5 {[%emt 0:00:20]} Ne4 {[%emt 0:00:01]} 9. Bxc6 {[%emt 0:01:05]} bxc6 {[%emt 0:00:02]} 10. Be3 {[%emt 0:00:13]} cxd4 {[%emt 0:00:01]} 11. cxd4 {[%emt 0:00:22]} Qb6 {[%emt 0:00:02]} 12. Qc1 {[%emt 0:01:15]} f6 {[%emt 0:08:38]} 13. Nc3 {[%emt 0:03:56]} Nxc3 {[%emt 0:04:22]} 14. Qxc3 {[%emt 0:00:15]} Rb8 {[%emt 0:03:16]} 15. b3 {[%emt 0:24:52]} g5 {[%emt 0:01:59]} 16. Rac1 {[%emt 0:01:02]} Bd7 {[%emt 0:01:02]} 17. h4 {[%emt 0:03:44]} h6 {[%emt 0:14:27]} 18. Bd2 {[%emt 0:02:43]} Rb7 {[%emt 0:12:53]} 19. Qd3 {[%emt 0:03:35]} Bg4 {[%emt 0:12:26]} 20. Nh2 {[%emt 0:04:38]} Be6 {[%emt 0:08:32]} 21. exf6 {[%emt 0:05:52]} Rxf6 {[%emt 0:00:23]} 22. hxg5 {[%emt 0:00:28]} hxg5 {[%emt 0:00:57]} 23. Bxg5 {[%emt 0:00:46]} Bf5 {[%emt 0:00:07]} 24. Qd2 {[%emt 0:02:47]} Rg6 {[%emt 0:05:14]} 25. Nf3 {[%emt 0:05:38]} Be4 {[%emt 0:00:37]} 26. Ne5 {[%emt 0:05:50]} Bxe5 {[%emt 0:00:02]} 27. dxe5 {[%emt 0:00:05]} Qb4 {[%emt 0:00:13]} 28. Qxb4 {[%emt 0:13:27]} Rxb4 {[%emt 0:00:45]} 29. Bxe7 {[%emt 0:04:22]} Rxg2+ {[%emt 0:07:39]} 30. Kf1 {[%emt 0:00:09]} Bf3 {[%emt 0:00:24]} 31. Rc3 {[%emt 0:01:59]} Rbg4 {[%emt 0:06:06]} 32. Rxf3 {[%emt 0:00:11]} d4 {[%emt 0:00:16]} 33. Ke2 {[%emt 0:01:10]} Re4+ {[%emt 0:00:19]} 34. Kd2 {[%emt 0:00:05]} Rxf2+ {[%emt 0:00:19]} 35. Rxf2 {[%emt 0:00:08]} Re2+ {[%emt 0:00:02]} 36. Rexe2 {[%emt 0:00:13]} d3 {[%emt 0:00:03]} 37. Re1 {[%emt 0:00:07]} c5 {[%emt 0:00:01]} 38. Rg1+ {[%emt 0:00:04]} Kh8 {[%emt 0:00:02]} 39. Rh2# 1-0

[Event "Cracovia Festival-A 2023"]
[Site "Krakow"]
[Date "2024.01.04"]
[Round "9.25"]
[White "Keinanen, Anastasia"]
[Black "Berin, Artem"]
[Result "1/2-1/2"]
[ECO "B42"]
[WhiteElo "2227"]
[BlackElo "2321"]
[Annotator "RC"]
[PlyCount "98"]
[EventDate "2023.12.24"]
[EventType "swiss"]
[EventCountry "POL"]
[SourceTitle "playchess.com"]
[Source "ChessBase"]
[SourceQuality "1"]
[TimeControl "40/5400+30:1800+30"]

1. e4 {[%emt 0:07:06]} c5 {[%emt 0:00:05]} 2. Nf3 {[%emt 0:00:57]} e6 {[%emt 0:00:08]} 3. d4 {[%emt 0:00:11]} cxd4 {[%emt 0:00:06]} 4. Nxd4 {[%emt 0:00:03]} a6 {[%emt 0:00:06]} 5. Bd3 {[%emt 0:00:22]} Bc5 {[%emt 0:00:08]} 6. Nb3 {[%emt 0:00:38]} Ba7 {[%emt 0:00:07]} 7. c4 {[%emt 0:04:27]} Ne7 {[%emt 0:00:16]} 8. Nc3 {[%emt 0:00:52]} Nbc6 {[%emt 0:00:11]} 9. Qe2 {[%emt 0:01:09]} O-O {[%emt 0:00:30]} 10. O-O {[%emt 0:06:41]} d5 {[%emt 0:00:22]} 11. exd5 {[%emt 0:02:28]} exd5 {[%emt 0:00:07]} 12. cxd5 {[%emt 0:01:16]} Nxd5 {[%emt 0:02:29]} 13. Bxh7+ {[%emt 0:07:09]} Kxh7 {[%emt 0:00:13]} 14. Qh5+ {[%emt 0:00:43]} Kg8 {[%emt 0:00:07]} 15. Nxd5 {[%emt 0:00:51]} Re8 {[%emt 0:27:51]} 16. Bf4 {[%emt 0:05:06]} g6 {[%emt 0:06:59]} 17. Qf3 {[%emt 0:09:05]} Ne5 {[%emt 0:07:22]} 18. Bxe5 {[%emt 0:02:34]} Rxe5 {[%emt 0:00:07]} 19. Rad1 {[%emt 0:01:35]} Qg5 {[%emt 0:13:40]} 20. Nf6+ {[%emt 0:10:56]} Kg7 {[%emt 0:01:02]} 21. Nd7 {[%emt 0:05:36]} Rf5 {[%emt 0:05:43]} 22. Qc3+ {[%emt 0:16:06]} Kg8 {[%emt 0:00:11]} 23. Qd2 {[%emt 0:01:35]} Qe7 {[%emt 0:06:41]} 24. Qd6 {[%emt 0:03:31]} Qxd6 {[%emt 0:03:23]} 25. Rxd6 {[%emt 0:00:04]} Bxd7 {[%emt 0:00:07]} 26. Rxd7 {[%emt 0:00:05]} Re8 {[%emt 0:00:06]} 27. Rd2 {[%emt 0:07:18]} a5 {[%emt 0:05:53]} 28. g3 {[%emt 0:01:41]} a4 {[%emt 0:01:35]} 29. Nc1 {[%emt 0:00:17]} Rc8 {[%emt 0:03:26]} 30. Kg2 {[%emt 0:00:43]} Rfc5 {[%emt 0:01:13]} 31. Ne2 {[%emt 0:01:16]} Rc2 {[%emt 0:00:28]} 32. Rfd1 {[%emt 0:00:09]} Bb6 {[%emt 0:01:43]} 33. Nd4 {[%emt 0:01:29]} Bxd4 {[%emt 0:08:30]} 34. Rxd4 {[%emt 0:01:23]} Rxb2 {[%emt 0:00:09]} 35. Rxa4 {[%emt 0:00:10]} b5 {[%emt 0:00:34]} 36. Rf4 {[%emt 0:01:10]} Rc7 {[%emt 0:01:14]} 37. Rd8+ {[%emt 0:00:38]} Kg7 {[%emt 0:00:10]} 38. Ra8 {[%emt 0:00:03]} f5 {[%emt 0:02:12]} 39. h4 {[%emt 0:00:43]} Rc4 {[%emt 0:01:53]} 40. Rf3 {[%emt 0:00:00]} Ra4 {[%emt 0:00:00]} 41. Ra3 {[%emt 0:08:04]} Rxa3 {[%emt 0:03:50]} 42. Rxa3 {[%emt 0:00:04]} b4 {[%emt 0:01:04]} 43. Ra6 {[%emt 0:00:34]} b3 {[%emt 0:00:43]} 44. axb3 {[%emt 0:00:04]} Rxb3 {[%emt 0:00:04]} 45. Re6 {[%emt 0:01:25]} Kf7 {[%emt 0:00:32]} 46. Re3 {[%emt 0:01:27]} Rb2 {[%emt 0:00:09]} 47. Kf3 {[%emt 0:00:35]} Kf6 {[%emt 0:01:02]} 48. Rd3 {[%emt 0:00:46]} Rb4 {[%emt 0:00:36]} 49. Ke3 {[%emt 0:03:45]} Re4+ {[%emt 0:01:31]} 1/2-1/2

[Event "Cracovia Festival-A 2023"]
[Site "Krakow"]
[Date "2024.01.04"]
[Round "9.26"]
[White "Buchenau, Frank"]
[Black "Janeczko, Jakub"]
[Result "1/2-1/2"]
[ECO "B51"]
[WhiteElo "2135"]
[BlackElo "2283"]
[Annotator "RC"]
[PlyCount "76"]
[EventDate "2023.12.24"]
[EventType "swiss"]
[EventCountry "POL"]
[SourceTitle "playchess.com"]
[Source "ChessBase"]
[SourceQuality "1"]
[TimeControl "40/5400+30:1800+30"]

1. e4 {[%emt 0:00:30]} c5 {[%emt 0:07:46]} 2. Nf3 {[%emt 0:00:09]} d6 {[%emt 0:00:06]} 3. Bb5+ {[%emt 0:00:09]} Nd7 {[%emt 0:00:03]} 4. O-O {[%emt 0:00:48]} a6 {[%emt 0:00:02]} 5. Bd3 {[%emt 0:01:38]} Ngf6 {[%emt 0:00:06]} 6. Re1 {[%emt 0:02:08]} e6 {[%emt 0:00:36]} 7. c3 {[%emt 0:03:27]} b5 {[%emt 0:00:32]} 8. Bc2 {[%emt 0:03:24]} c4 {[%emt 0:00:32]} 9. a4 {[%emt 0:01:18]} Bb7 {[%emt 0:00:44]} 10. d4 {[%emt 0:16:44]} cxd3 {[%emt 0:04:22]} 11. Bxd3 {[%emt 0:03:55]} bxa4 {[%emt 0:02:37]} 12. Qxa4 {[%emt 0:00:29]} Be7 {[%emt 0:03:40]} 13. b4 {[%emt 0:05:06]} O-O {[%emt 0:01:56]} 14. Nbd2 {[%emt 0:15:18]} a5 {[%emt 0:01:04]} 15. Qb3 {[%emt 0:01:46]} axb4 {[%emt 0:13:34]} 16. Rxa8 {[%emt 0:02:12]} Bxa8 {[%emt 0:00:56]} 17. cxb4 {[%emt 0:00:09]} e5 {[%emt 0:04:21]} 18. Ba3 {[%emt 0:02:56]} Qb8 {[%emt 0:08:12]} 19. Rc1 {[%emt 0:00:31]} Qa7 {[%emt 0:02:15]} 20. h3 {[%emt 0:03:51]} d5 {[%emt 0:08:01]} 21. exd5 {[%emt 0:01:15]} Nxd5 {[%emt 0:01:57]} 22. Re1 {[%emt 0:08:03]} Nf4 {[%emt 0:07:34]} 23. Be4 {[%emt 0:03:54]} Qa6 {[%emt 0:06:41]} 24. Bb2 {[%emt 0:06:04]} Bxe4 {[%emt 0:04:59]} 25. Nxe4 {[%emt 0:01:56]} Qg6 {[%emt 0:03:53]} 26. Ng3 {[%emt 0:02:22]} h5 {[%emt 0:06:51]} 27. Nxe5 {[%emt 0:09:45]} Nxe5 {[%emt 0:00:00]} 28. Bxe5 {[%emt 0:01:32]} Nd3 {[%emt 0:00:01]} 29. Re4 {[%emt 0:01:36]} Rd8 {[%emt 0:04:21]} 30. Bxg7 {[%emt 0:01:05]} Qxg7 {[%emt 0:00:42]} 31. Rxe7 {[%emt 0:00:31]} Qf6 {[%emt 0:00:01]} 32. Re4 {[%emt 0:01:26]} Qxf2+ {[%emt 0:00:04]} 33. Kh2 {[%emt 0:00:05]} Nf4 {[%emt 0:03:24]} 34. Qf3 {[%emt 0:00:31]} Qxf3 {[%emt 0:00:01]} 35. gxf3 {[%emt 0:00:02]} Rd2+ {[%emt 0:00:01]} 36. Kh1 {[%emt 0:00:28]} Rd1+ {[%emt 0:00:14]} 37. Kh2 {[%emt 0:00:17]} Rd2+ {[%emt 0:00:01]} 38. Kh1 {[%emt 0:00:39]} Rd1+ {[%emt 0:03:20]} 1/2-1/2

[Event "Cracovia Festival-A 2023"]
[Site "Krakow"]
[Date "2024.01.04"]
[Round "9.27"]
[White "van der Merwe, Alexander"]
[Black "Sofronie, Iulian"]
[Result "0-1"]
[ECO "C55"]
[WhiteElo "2113"]
[BlackElo "2438"]
[Annotator "RC"]
[PlyCount "120"]
[EventDate "2023.12.24"]
[EventType "swiss"]
[EventCountry "POL"]
[SourceTitle "playchess.com"]
[Source "ChessBase"]
[SourceQuality "1"]
[TimeControl "40/5400+30:1800+30"]

1. e4 {[%emt 0:00:03]} e5 {[%emt 0:00:06]} 2. Nf3 {[%emt 0:00:06]} Nc6 {[%emt 0:00:03]} 3. Bc4 {[%emt 0:00:06]} Nf6 {[%emt 0:00:04]} 4. d3 {[%emt 0:00:04]} h6 {[%emt 0:00:05]} 5. O-O {[%emt 0:00:27]} d6 {[%emt 0:00:04]} 6. a4 {[%emt 0:00:21]} g6 {[%emt 0:00:05]} 7. Nc3 {[%emt 0:03:08]} Bg7 {[%emt 0:00:06]} 8. h3 {[%emt 0:00:05]} O-O {[%emt 0:00:24]} 9. Be3 {[%emt 0:01:13]} Be6 {[%emt 0:00:59]} 10. a5 {[%emt 0:06:10]} a6 {[%emt 0:00:28]} 11. Nh2 {[%emt 0:06:37]} d5 {[%emt 0:02:27]} 12. exd5 {[%emt 0:01:42]} Nxd5 {[%emt 0:00:09]} 13. Nxd5 {[%emt 0:13:04]} Bxd5 {[%emt 0:00:22]} 14. Bxd5 {[%emt 0:12:24]} Qxd5 {[%emt 0:00:08]} 15. Qd2 {[%emt 0:00:28]} Kh7 {[%emt 0:00:34]} 16. Ra4 {[%emt 0:03:15]} Nd4 {[%emt 0:14:58]} 17. f4 {[%emt 0:04:36]} exf4 {[%emt 0:02:39]} 18. Bxf4 {[%emt 0:03:04]} Rae8 {[%emt 0:00:27]} 19. Rf2 {[%emt 0:05:09]} c5 {[%emt 0:01:01]} 20. c3 {[%emt 0:01:55]} Ne6 {[%emt 0:01:00]} 21. Bg3 {[%emt 0:08:54]} f5 {[%emt 0:00:58]} 22. Re2 {[%emt 0:03:53]} Rd8 {[%emt 0:03:26]} 23. Ra1 {[%emt 0:00:44]} f4 {[%emt 0:02:52]} 24. Bf2 {[%emt 0:00:30]} Ng5 {[%emt 0:01:32]} 25. h4 {[%emt 0:06:26]} f3 {[%emt 0:01:35]} 26. Re3 {[%emt 0:01:47]} Ne4 {[%emt 0:01:13]} 27. Qe1 {[%emt 0:00:41]} Nxf2 {[%emt 0:01:51]} 28. Qxf2 {[%emt 0:00:01]} fxg2 {[%emt 0:00:07]} 29. Qxg2 {[%emt 0:00:05]} Qxg2+ {[%emt 0:01:19]} 30. Kxg2 {[%emt 0:00:01]} Rd7 {[%emt 0:00:57]} 31. Rf1 {[%emt 0:02:45]} Rxf1 {[%emt 0:00:38]} 32. Nxf1 {[%emt 0:06:41]} Bf6 {[%emt 0:00:25]} 33. Kg3 {[%emt 0:00:15]} Bd8 {[%emt 0:00:22]} 34. Nd2 {[%emt 0:00:33]} Kg7 {[%emt 0:03:19]} 35. Nc4 {[%emt 0:02:45]} Rd5 {[%emt 0:00:25]} 36. Kg4 {[%emt 0:04:56]} Rh5 {[%emt 0:02:11]} 37. Rh3 {[%emt 0:01:30]} Rf5 {[%emt 0:00:16]} 38. Re3 {[%emt 0:01:04]} h5+ {[%emt 0:00:28]} 39. Kg3 {[%emt 0:01:18]} Bc7+ {[%emt 0:00:35]} 40. Kg2 {[%emt 0:00:00]} Kf7 {[%emt 0:00:00]} 41. Re4 {[%emt 0:06:33]} g5 {[%emt 0:01:55]} 42. Ne3 {[%emt 0:01:39]} Rf4 {[%emt 0:00:17]} 43. Rxf4+ {[%emt 0:07:34]} Bxf4 {[%emt 0:00:06]} 44. Nd5 {[%emt 0:00:11]} Bc1 {[%emt 0:00:04]} 45. hxg5 {[%emt 0:00:18]} Bxg5 {[%emt 0:00:05]} 46. c4 {[%emt 0:09:35]} Bd2 {[%emt 0:01:37]} 47. Kf3 {[%emt 0:03:25]} Bxa5 {[%emt 0:00:43]} 48. Nf4 {[%emt 0:01:23]} h4 {[%emt 0:00:07]} 49. Kg4 {[%emt 0:00:19]} Bd8 {[%emt 0:01:03]} 50. Kf5 {[%emt 0:01:20]} Bc7 {[%emt 0:01:34]} 51. Nh3 {[%emt 0:00:08]} Ke7 {[%emt 0:00:35]} 52. Ng5 {[%emt 0:00:42]} Kd7 {[%emt 0:00:13]} 53. Nh3 {[%emt 0:01:25]} Kc6 {[%emt 0:00:18]} 54. Ke6 {[%emt 0:01:15]} Bg3 {[%emt 0:00:34]} 55. Kf5 {[%emt 0:00:56]} Kb6 {[%emt 0:01:44]} 56. Ke6 {[%emt 0:00:54]} Ka5 {[%emt 0:00:08]} 57. Kd7 {[%emt 0:01:15]} Kb4 {[%emt 0:00:24]} 58. Kc8 {[%emt 0:00:18]} a5 {[%emt 0:00:07]} 59. d4 {[%emt 0:01:26]} cxd4 {[%emt 0:00:06]} 60. Kxb7 {[%emt 0:00:04]} d3 {[%emt 0:00:08]} 0-1